﻿DEPARTMENT FAMILY,ENTITY,Date,Expense Type,Expense Area,Supplier,Transaction number,Amount,Description
DEPARTMENT OF HEALTH,BLACKPOOL TEACHING HOSPITALS NHS FT ,Dec-21,Soft FM ,Facilities ,Atlas BFW Management Ltd,1710000544,"5,775,524.67",Facilities Management Contract 
DEPARTMENT OF HEALTH,BLACKPOOL TEACHING HOSPITALS NHS FT ,Dec-21,Contractual Clinical Services,Contractual Clinical Services,Atlas Diagnostics Limited,ATL-BVH-0721,"32,079.30",Admin Radiology 
DEPARTMENT OF HEALTH,BLACKPOOL TEACHING HOSPITALS NHS FT ,Dec-21,Contractual Clinical Services,Contractual Clinical Services,Beckman Coulter Uk,1505512,"31,227.85",Laboratory Reagents
DEPARTMENT OF HEALTH,BLACKPOOL TEACHING HOSPITALS NHS FT ,Dec-21,Ict Telecommunications,Facilities ,Bt Global Services,0790336866,"29,239.27",Telephone Rental and Call Charges
DEPARTMENT OF HEALTH,BLACKPOOL TEACHING HOSPITALS NHS FT ,Dec-21,Ict Managed Print,Facilities ,Canon (Uk) Ltd,402342939,"25,779.48",Photocopying Rental And Charges
DEPARTMENT OF HEALTH,BLACKPOOL TEACHING HOSPITALS NHS FT ,Dec-21,Contractual Clinical Services,Contractual Clinical Services,Chg-Meridian UK Limited,7069937,"65,854.85",Med Surg Eqpt Leasing
DEPARTMENT OF HEALTH,BLACKPOOL TEACHING HOSPITALS NHS FT ,Dec-21,Contractual Clinical Services,Contractual Clinical Services,Chg-Meridian UK Limited,7072049,"65,854.85",Med Surg Eqpt Leasing
DEPARTMENT OF HEALTH,BLACKPOOL TEACHING HOSPITALS NHS FT ,Dec-21,Corporate ,Corporate ,CHS Healthcare,INV011479,"44,292.00",External Consultancy Fees
DEPARTMENT OF HEALTH,BLACKPOOL TEACHING HOSPITALS NHS FT ,Dec-21,Corporate ,Corporate ,CHS Healthcare,INV011559,"43,200.00",External Consultancy Fees
DEPARTMENT OF HEALTH,BLACKPOOL TEACHING HOSPITALS NHS FT ,Dec-21,Contractual Clinical Services,Contractual Clinical Services,East Lancashire Hospitals NHS Trust,E0106806,"39,618.00",Bowel Cancer Screening
DEPARTMENT OF HEALTH,BLACKPOOL TEACHING HOSPITALS NHS FT ,Dec-21,Procurement Services,Corporate ,East Lancashire Hospitals NHS Trust,E0106202,"47,792.16",Procurement Services
DEPARTMENT OF HEALTH,BLACKPOOL TEACHING HOSPITALS NHS FT ,Dec-21,Procurement Services,Corporate ,East Lancashire Hospitals NHS Trust,E0106400,"47,792.16",Procurement Services
DEPARTMENT OF HEALTH,BLACKPOOL TEACHING HOSPITALS NHS FT ,Dec-21,Gastro Unit,Contractual Clinical Services,Elective Services Ltd,102090,"29,989.20",Contractual Clinical Services
DEPARTMENT OF HEALTH,BLACKPOOL TEACHING HOSPITALS NHS FT ,Dec-21,Gastro Unit,Contractual Clinical Services,Elective Services Ltd,102099,"29,989.20",Contractual Clinical Services
DEPARTMENT OF HEALTH,BLACKPOOL TEACHING HOSPITALS NHS FT ,Dec-21,Soft FM ,Facilities ,Express Launderers,4515,"81,600.00",Laundry Services 
DEPARTMENT OF HEALTH,BLACKPOOL TEACHING HOSPITALS NHS FT ,Dec-21,Soft FM ,Facilities ,Express Launderers,4516,"25,289.65",Laundry Services 
DEPARTMENT OF HEALTH,BLACKPOOL TEACHING HOSPITALS NHS FT ,Dec-21,Digital Identity,Facilities ,Ideal Health Consultants Ltd,6555,"47,520.00",External Consultancy Fees
DEPARTMENT OF HEALTH,BLACKPOOL TEACHING HOSPITALS NHS FT ,Dec-21,Health Informatics Programme,Facilities ,Insight Direct (Uk) Ltd,2100060764-21,"25,557.60",External Consultancy Fees
DEPARTMENT OF HEALTH,BLACKPOOL TEACHING HOSPITALS NHS FT ,Dec-21,Corporate ,Corporate ,KPMG LLP,5502307799,"124,800.00",Professional Fees
DEPARTMENT OF HEALTH,BLACKPOOL TEACHING HOSPITALS NHS FT ,Dec-21,Contractual Clinical Services,Contractual Clinical Services,Lancashire Teaching Hospitals NHS Foundation Trust,15353362,"49,295.53",Medical Staff - Oncology
DEPARTMENT OF HEALTH,BLACKPOOL TEACHING HOSPITALS NHS FT ,Dec-21,Corporate ,Corporate ,Layton Medical Centre,NOVA06,"110,846.12",Research And Development
DEPARTMENT OF HEALTH,BLACKPOOL TEACHING HOSPITALS NHS FT ,Dec-21,HARD FM ,Facilities ,Malinko Health & Care Technologies Limited ta Malinko,20517,"70,296.00",Computer Software / License Fees
DEPARTMENT OF HEALTH,BLACKPOOL TEACHING HOSPITALS NHS FT ,Dec-21,Contractual Clinical Services,Contractual Clinical Services,Mersey Medical Services Ltd,INV-1135,"33,256.60",Transport Costs
DEPARTMENT OF HEALTH,BLACKPOOL TEACHING HOSPITALS NHS FT ,Dec-21,Contractual Clinical Services,Contractual Clinical Services,NHS Blood And Transplant,7001890,"171,382.41",Blood Products
DEPARTMENT OF HEALTH,BLACKPOOL TEACHING HOSPITALS NHS FT ,Dec-21,Contractual Clinical Services,Contractual Clinical Services,NHS North of England CSU,7310023788,"104,956.00",External Consultancy Fees
DEPARTMENT OF HEALTH,BLACKPOOL TEACHING HOSPITALS NHS FT ,Dec-21,Contractual Clinical Services,Contractual Clinical Services,Qiagen Ltd,96387254,"258,350.40",Laboratory Test Kits
DEPARTMENT OF HEALTH,BLACKPOOL TEACHING HOSPITALS NHS FT ,Dec-21,Corporate ,Corporate ,Qiagen Ltd,96401780,"164,638.23",Laboratory Equipment
DEPARTMENT OF HEALTH,BLACKPOOL TEACHING HOSPITALS NHS FT ,Dec-21,Contractual Clinical Services,Contractual Clinical Services,Radiology Management Solutions Ltd,INV-833,"37,448.51",MRI Scanner 
DEPARTMENT OF HEALTH,BLACKPOOL TEACHING HOSPITALS NHS FT ,Dec-21,Contractual Clinical Services,Contractual Clinical Services,Siemens Financial Services Ltd,220/22/0006357,"31,225.95",MRI Scanner 
DEPARTMENT OF HEALTH,BLACKPOOL TEACHING HOSPITALS NHS FT ,Dec-21,Contractual Clinical Services,Contractual Clinical Services,Siemens Healthcare Diagnostics Ltd,114313187,"84,350.35",Laboratory Reagents
DEPARTMENT OF HEALTH,BLACKPOOL TEACHING HOSPITALS NHS FT ,Dec-21,Contractual Clinical Services,Contractual Clinical Services,Siemens Healthcare Diagnostics Ltd,114358380,"84,350.35",Laboratory Reagents
DEPARTMENT OF HEALTH,BLACKPOOL TEACHING HOSPITALS NHS FT ,Dec-21,Digital Identity,Facilities ,Sitekit Applications Ltd,1179,"94,248.00",Computer Maintenance
DEPARTMENT OF HEALTH,BLACKPOOL TEACHING HOSPITALS NHS FT ,Dec-21,Digital Identity,Facilities ,Sitekit Applications Ltd,1197,"77,400.00",Computer Maintenance
DEPARTMENT OF HEALTH,BLACKPOOL TEACHING HOSPITALS NHS FT ,Dec-21,Digital Identity,Facilities ,Sitekit Applications Ltd,1208,"46,440.00",Computer Maintenance
DEPARTMENT OF HEALTH,BLACKPOOL TEACHING HOSPITALS NHS FT ,Dec-21,Digital Identity,Facilities ,Sitekit Applications Ltd,1209,"28,560.00",External Consultancy Fees
DEPARTMENT OF HEALTH,BLACKPOOL TEACHING HOSPITALS NHS FT ,Dec-21,Digital Identity,Facilities ,Sitekit Applications Ltd,1213,"34,200.00",External Consultancy Fees
DEPARTMENT OF HEALTH,BLACKPOOL TEACHING HOSPITALS NHS FT ,Dec-21,Surgical Division,Contractual Clinical Services,Spire Healthcare,RXLFYCICF2122M06,"133,798.38",Contractual Clinical Services
DEPARTMENT OF HEALTH,BLACKPOOL TEACHING HOSPITALS NHS FT ,Dec-21,Soft FM  ,Facilities ,Srcl Ltd,0001554909,"112,374.68",Clinical Waste
DEPARTMENT OF HEALTH,BLACKPOOL TEACHING HOSPITALS NHS FT ,Dec-21,Soft FM  ,Facilities ,Srcl Ltd,0001603486,"372,764.77",Clinical Waste
DEPARTMENT OF HEALTH,BLACKPOOL TEACHING HOSPITALS NHS FT ,Dec-21,Soft FM  ,Facilities ,Srcl Ltd,0001650248,"25,328.53",Clinical Waste
DEPARTMENT OF HEALTH,BLACKPOOL TEACHING HOSPITALS NHS FT ,Dec-21,Soft FM  ,Facilities ,Srcl Ltd,0001650254,"26,078.47",Clinical Waste
DEPARTMENT OF HEALTH,BLACKPOOL TEACHING HOSPITALS NHS FT ,Dec-21,Soft FM  ,Facilities ,Srcl Ltd,0001650262,"27,224.39",Clinical Waste
DEPARTMENT OF HEALTH,BLACKPOOL TEACHING HOSPITALS NHS FT ,Dec-21,Contractual Clinical Services,Contractual Clinical Services,Trinity Hospice & Palliative Care Services Ltd,1236,"87,871.99",Medical Staff - Palliative Care
DEPARTMENT OF HEALTH,BLACKPOOL TEACHING HOSPITALS NHS FT ,Dec-21,Contractual Clinical Services,Contractual Clinical Services,University Hospitals Birmingham NHS Foundation Trust,OP/Y037238,"34,495.68",Laboratory External Tests
DEPARTMENT OF HEALTH,BLACKPOOL TEACHING HOSPITALS NHS FT ,Dec-21,Multi-Divisional charge ,Multi-Divisional charge ,Retinue Solutions Ltd,6359,"93,833.81",Agency Nursing
DEPARTMENT OF HEALTH,BLACKPOOL TEACHING HOSPITALS NHS FT ,Dec-21,Multi-Divisional charge ,Multi-Divisional charge ,Retinue Solutions Ltd,6360,"223,487.26",Agency Nursing
DEPARTMENT OF HEALTH,BLACKPOOL TEACHING HOSPITALS NHS FT ,Dec-21,Multi-Divisional charge ,Multi-Divisional charge ,Retinue Solutions Ltd,6392,"235,496.72",Agency Nursing
DEPARTMENT OF HEALTH,BLACKPOOL TEACHING HOSPITALS NHS FT ,Dec-21,Multi-Divisional charge ,Multi-Divisional charge ,Retinue Solutions Ltd,6393,"185,373.37",Agency Nursing
DEPARTMENT OF HEALTH,BLACKPOOL TEACHING HOSPITALS NHS FT ,Dec-21,Multi-Divisional charge ,Multi-Divisional charge ,Retinue Solutions Ltd,6428,"244,050.41",Agency Nursing
DEPARTMENT OF HEALTH,BLACKPOOL TEACHING HOSPITALS NHS FT ,Dec-21,Multi-Divisional charge ,Multi-Divisional charge ,Retinue Solutions Ltd,6429,"91,140.31",Agency Nursing
DEPARTMENT OF HEALTH,BLACKPOOL TEACHING HOSPITALS NHS FT ,Dec-21,Multi-Divisional charge ,Multi-Divisional charge ,Retinue Solutions Ltd,6458,"100,502.34",Agency Nursing
DEPARTMENT OF HEALTH,BLACKPOOL TEACHING HOSPITALS NHS FT ,Dec-21,Multi-Divisional charge ,Multi-Divisional charge ,Retinue Solutions Ltd,6459,"239,783.27",Agency Nursing
DEPARTMENT OF HEALTH,BLACKPOOL TEACHING HOSPITALS NHS FT ,Dec-21,Capital Purchases ,Capital Purchases ,KPMG LLP,5502307800,"114,106.80",Capital Purchases 
DEPARTMENT OF HEALTH,BLACKPOOL TEACHING HOSPITALS NHS FT ,Dec-21,Capital Purchases ,Capital Purchases ,Connell Brothers Ltd,308,"166,077.94",Capital Purchases 
DEPARTMENT OF HEALTH,BLACKPOOL TEACHING HOSPITALS NHS FT ,Dec-21,Capital Purchases ,Capital Purchases ,D & G Builders & Joiners Ltd,53426,"42,071.69",Capital Purchases 
DEPARTMENT OF HEALTH,BLACKPOOL TEACHING HOSPITALS NHS FT ,Dec-21,Capital Purchases ,Capital Purchases ,D S S R Consulting Engineers,46442,"66,000.00",Capital Purchases 
DEPARTMENT OF HEALTH,BLACKPOOL TEACHING HOSPITALS NHS FT ,Dec-21,Capital Purchases ,Capital Purchases ,D S S R Consulting Engineers,46460,"26,164.97",Capital Purchases 
DEPARTMENT OF HEALTH,BLACKPOOL TEACHING HOSPITALS NHS FT ,Dec-21,Capital Purchases ,Capital Purchases ,D S S R Consulting Engineers,46467,"30,000.00",Capital Purchases 
DEPARTMENT OF HEALTH,BLACKPOOL TEACHING HOSPITALS NHS FT ,Dec-21,Capital Purchases ,Capital Purchases ,D & G Builders & Joiners Ltd,53396,"82,650.00",Capital Purchases 
DEPARTMENT OF HEALTH,BLACKPOOL TEACHING HOSPITALS NHS FT ,Dec-21,Capital Purchases ,Capital Purchases ,Gilling Dod Ltd,INV-9156,"58,926.00",Capital Purchases 
DEPARTMENT OF HEALTH,BLACKPOOL TEACHING HOSPITALS NHS FT ,Dec-21,Capital Purchases ,Capital Purchases ,Gilling Dod Ltd,INV-9157,"42,119.40",Capital Purchases 
DEPARTMENT OF HEALTH,BLACKPOOL TEACHING HOSPITALS NHS FT ,Dec-21,Capital Purchases ,Capital Purchases ,Gilling Dod Ltd,INV-9263,"40,680.60",Capital Purchases 
DEPARTMENT OF HEALTH,BLACKPOOL TEACHING HOSPITALS NHS FT ,Dec-21,Capital Purchases ,Capital Purchases ,Dell Corporation Ltd,7402762806,"163,170.91",Capital Purchases 
DEPARTMENT OF HEALTH,BLACKPOOL TEACHING HOSPITALS NHS FT ,Dec-21,Capital Purchases ,Capital Purchases ,Siemens Healthcare Diagnostics Ltd,1051109448,"88,920.00",Capital Purchases 
DEPARTMENT OF HEALTH,BLACKPOOL TEACHING HOSPITALS NHS FT ,Dec-21,Capital Purchases ,Capital Purchases ,Siemens Healthcare Diagnostics Ltd,1051109449,"211,584.00",Capital Purchases 
DEPARTMENT OF HEALTH,BLACKPOOL TEACHING HOSPITALS NHS FT ,Dec-21,Capital Purchases ,Capital Purchases ,Siemens Healthcare Diagnostics Ltd,1051109634,"102,600.00",Capital Purchases 
DEPARTMENT OF HEALTH,BLACKPOOL TEACHING HOSPITALS NHS FT ,Dec-21,Capital Purchases ,Capital Purchases ,Hologic (Uk) Ltd,2265349,"50,340.00",Capital Purchases 
DEPARTMENT OF HEALTH,BLACKPOOL TEACHING HOSPITALS NHS FT ,Dec-21,Pharmacy Drugs Inventory ,Pharmacy Drugs Inventory ,Lloyds Pharmacy Ltd,0000104278,"867,332.32",Pharmacy Drugs Inventory 
DEPARTMENT OF HEALTH,BLACKPOOL TEACHING HOSPITALS NHS FT ,Dec-21,Pharmacy Drugs Inventory ,Pharmacy Drugs Inventory ,Bristol Myers Squibb Pharmaceuticals Ltd,100676665,"27,076.14",Pharmacy Drugs Inventory 
DEPARTMENT OF HEALTH,BLACKPOOL TEACHING HOSPITALS NHS FT ,Dec-21,Pharmacy Drugs Inventory ,Pharmacy Drugs Inventory ,Roche Products Ltd,1321957076,"26,760.38",Pharmacy Drugs Inventory 
DEPARTMENT OF HEALTH,BLACKPOOL TEACHING HOSPITALS NHS FT ,Dec-21,Pharmacy Drugs Inventory ,Pharmacy Drugs Inventory ,Roche Products Ltd,1321985483,"40,225.39",Pharmacy Drugs Inventory 
DEPARTMENT OF HEALTH,BLACKPOOL TEACHING HOSPITALS NHS FT ,Dec-21,Pharmacy Drugs Inventory ,Pharmacy Drugs Inventory ,Roche Products Ltd,132220670,"70,787.50",Pharmacy Drugs Inventory 
DEPARTMENT OF HEALTH,BLACKPOOL TEACHING HOSPITALS NHS FT ,Dec-21,Pharmacy Drugs Inventory ,Pharmacy Drugs Inventory ,Baxter Healthcare Ltd,21283700,"67,736.62",Pharmacy Drugs Inventory 
DEPARTMENT OF HEALTH,BLACKPOOL TEACHING HOSPITALS NHS FT ,Dec-21,Pharmacy Drugs Inventory ,Pharmacy Drugs Inventory ,Baxter Healthcare Ltd,21289070,"59,684.16",Pharmacy Drugs Inventory 
DEPARTMENT OF HEALTH,BLACKPOOL TEACHING HOSPITALS NHS FT ,Dec-21,Pharmacy Drugs Inventory ,Pharmacy Drugs Inventory ,Baxter Healthcare Ltd,21305857,"87,184.25",Pharmacy Drugs Inventory 
DEPARTMENT OF HEALTH,BLACKPOOL TEACHING HOSPITALS NHS FT ,Dec-21,Pharmacy Drugs Inventory ,Pharmacy Drugs Inventory ,Baxter Healthcare Ltd,21311450,"82,303.62",Pharmacy Drugs Inventory 
DEPARTMENT OF HEALTH,BLACKPOOL TEACHING HOSPITALS NHS FT ,Dec-21,Pharmacy Drugs Inventory ,Pharmacy Drugs Inventory ,Aah Hospital Service,43178232U,"32,822.62",Pharmacy Drugs Inventory 
DEPARTMENT OF HEALTH,BLACKPOOL TEACHING HOSPITALS NHS FT ,Dec-21,Pharmacy Drugs Inventory ,Pharmacy Drugs Inventory ,Aah Hospital Service,43506630L,"46,027.78",Pharmacy Drugs Inventory 
DEPARTMENT OF HEALTH,BLACKPOOL TEACHING HOSPITALS NHS FT ,Dec-21,Pharmacy Drugs Inventory ,Pharmacy Drugs Inventory ,Aah Hospital Service,43763877F,"55,230.24",Pharmacy Drugs Inventory 
DEPARTMENT OF HEALTH,BLACKPOOL TEACHING HOSPITALS NHS FT ,Dec-21,Pharmacy Drugs Inventory ,Pharmacy Drugs Inventory ,Bayer Plc,824C385913,"59,309.64",Pharmacy Drugs Inventory 
DEPARTMENT OF HEALTH,BLACKPOOL TEACHING HOSPITALS NHS FT ,Dec-21,Pharmacy Drugs Inventory ,Pharmacy Drugs Inventory ,Bayer Plc,824C386999,"91,245.60",Pharmacy Drugs Inventory 
DEPARTMENT OF HEALTH,BLACKPOOL TEACHING HOSPITALS NHS FT ,Dec-21,Pharmacy Drugs Inventory ,Pharmacy Drugs Inventory ,Novartis Pharmaceuticals Uk Ltd,92533495,"26,712.00",Pharmacy Drugs Inventory 
DEPARTMENT OF HEALTH,BLACKPOOL TEACHING HOSPITALS NHS FT ,Dec-21,Pharmacy Drugs Inventory ,Pharmacy Drugs Inventory ,Novartis Pharmaceuticals Uk Ltd,92536331,"32,054.40",Pharmacy Drugs Inventory 
DEPARTMENT OF HEALTH,BLACKPOOL TEACHING HOSPITALS NHS FT ,Dec-21,Pharmacy Drugs Inventory ,Pharmacy Drugs Inventory ,Novartis Pharmaceuticals Uk Ltd,92536911,"53,424.00",Pharmacy Drugs Inventory 
DEPARTMENT OF HEALTH,BLACKPOOL TEACHING HOSPITALS NHS FT ,Dec-21,Multi-Divisional charge ,Multi-Divisional charge ,St Helens and Knowsley Hospital Services NHS Trust,16809751,"138,305.89",Inter NHS Medical staff recharges
DEPARTMENT OF HEALTH,BLACKPOOL TEACHING HOSPITALS NHS FT ,Dec-21,Multi-Divisional charge ,Multi-Divisional charge ,St Helens and Knowsley Hospital Services NHS Trust,16810117,"800,000.00",Inter NHS Medical staff recharges
DEPARTMENT OF HEALTH,BLACKPOOL TEACHING HOSPITALS NHS FT ,Dec-21,Multi-Divisional charge ,Multi-Divisional charge ,NHS Supply Chain Co-ordination Limited,1122164347,"240,354.48",NHS Supply Chain Catalogue items
DEPARTMENT OF HEALTH,BLACKPOOL TEACHING HOSPITALS NHS FT ,Dec-21,Multi-Divisional charge ,Multi-Divisional charge ,NHS Supply Chain Co-ordination Limited,1122169050,"152,044.29",NHS Supply Chain Catalogue items
DEPARTMENT OF HEALTH,BLACKPOOL TEACHING HOSPITALS NHS FT ,Dec-21,Multi-Divisional charge ,Multi-Divisional charge ,NHS Supply Chain Co-ordination Limited,1122177096,"220,791.70",NHS Supply Chain Catalogue items
DEPARTMENT OF HEALTH,BLACKPOOL TEACHING HOSPITALS NHS FT ,Dec-21,Multi-Divisional charge ,Multi-Divisional charge ,NHS Supply Chain Co-ordination Limited,1122182142,"356,023.20",NHS Supply Chain Catalogue items
